bitfinex/quotes_ETHUSD_20251126
["timestamp","ask_amount","ask_price","bid_price","bid_amount"]
[1764164235576,0.6494,2921.4,2921.1,6.8467358]
[1764164235898,0.6494,2921.4,2921.1,3.4233679]
[1764164236094,0.1804,2922.3,2921.1,10.2701037]
[1764164236286,0.6706,2922.3,2921.1,10.7357037]
[1764164236484,0.4902,2922.2,2921.1,6.8467358]
[1764164237005,0.4902,2922.2,2920.9,6.84714262]
[1764164237374,0.4902,2922.2,2920.9,10.27074493]
[1764164237574,0.4902,2922.2,2920.9,13.69434724]
[1764164237899,0.4894,2922.2,2920.9,6.84714262]
[1764164238209,0.4894,2922.2,2920.9,10.27074493]
[1764164238779,0.4894,2922.2,2920.9,14.15994724]
[1764164239008,0.1804,2922.3,2921.0,1.59669811]
[1764164239215,0.1804,2922.3,2921.2,0.405504]
[1764164239417,0.1804,2922.3,2921.1,0.405504]
[1764164240003,0.1804,2922.3,2921.1,0.871104]
[1764164240214,0.1804,2922.3,2921.3,0.405504]
[1764164240699,0.1804,2922.3,2921.3,0.871104]
[1764164240891,0.1804,2922.3,2921.5,0.405504]
[1764164241315,0.6706,2922.3,2921.5,0.871104]
[1764164241680,0.4902,2922.8,2921.7,0.405504]
[1764164241899,0.1804,2924.1,2922.0,0.405504]
[1764164242108,0.1804,2924.1,2921.7,0.405504]
[1764164242109,0.4902,2923.4,2922.1,0.1685]
[1764164242915,0.4902,2923.4,2922.2,6.8441585]
[1764164244003,0.4902,2923.4,2922.2,3.42207925]
[1764164244198,0.4902,2923.4,2922.2,6.8441585]
[1764164244619,3.53442733,2923.9,2921.9,3.42243061]
[1764164244620,0.11424007,2923.9,2921.9,3.42243061]
[1764164244827,0.4902,2923.8,2922.2,0.72559411]
[1764164244991,0.4902,2923.8,2922.3,1.43379397]
[1764164245516,0.4902,2923.8,2922.1,6.84439272]
[1764164245815,0.72559411,2923.7,2922.2,0.4902]
[1764164246015,0.183,2922.3,2921.9,3.42240716]
[1764164246178,15.56362305,2923.8,2921.9,3.42240716]
[1764164246179,0.183,2922.7,2921.9,10.73286838]
[1764164246383,0.6732,2922.7,2921.9,10.26726838]
[1764164247014,0.183,2922.7,2921.9,6.84483777]
[1764164247193,0.4902,2922.6,2921.9,6.84483777]
[1764164248018,0.183,2922.7,2922.0,1.13109811]
[1764164248191,0.6732,2922.8,2922.0,1.13209811]
[1764164248912,0.4902,2922.7,2922.0,1.13209811]
[1764164249215,0.4902,2922.7,2922.1,10.26658908]
[1764164249416,0.4902,2922.7,2922.1,6.84439272]
[1764164249712,0.4902,2922.7,2922.1,10.26658908]
[1764164249906,0.4902,2922.7,2922.1,6.84439272]
[1764164250102,0.4664,2922.2,2922.1,3.42219636]
[1764164250290,0.4902,2922.7,2922.1,6.84439272]
[1764164250815,0.4664,2922.2,2922.1,3.42219636]
[1764164251004,0.4664,2922.2,2922.0,0.001]
[1764164251619,0.4902,2922.4,2922.0,0.001]
[1764164252394,0.4664,2922.1,2922.0,0.001]
[1764164252801,0.9566,2922.1,2922.0,0.001]
[1764164253319,0.4902,2922.7,2922.0,0.4852]
[1764164253518,0.4902,2922.7,2922.0,0.001]
[1764164254587,0.183,2922.8,2922.0,0.001]
[1764164255217,0.183,2922.8,2922.0,10.26794044]
[1764164256223,0.183,2922.8,2922.0,14.15585392]
[1764164256387,0.4902,2923.6,2922.7,0.4842]
[1764164256587,0.183,2923.4,2922.1,1.59669811]
[1764164256789,0.183,2923.4,2922.3,0.405504]
[1764164256997,0.4902,2923.3,2922.3,0.405504]
[1764164257223,0.4902,2923.3,2922.5,1.13109811]
[1764164257833,0.4664,2922.6,2922.4,6.8436901]
[1764164258202,0.4902,2922.9,2922.4,10.26553515]
[1764164258410,0.4902,2923.3,2922.5,0.4842]
[1764164258610,0.31915561,2923.2,2922.5,0.4842]
[1764164258815,0.4902,2923.3,2922.5,0.4842]
[1764164259128,0.80935533,2923.2,2922.4,10.26553515]
[1764164259431,0.4902,2923.2,2922.3,0.405504]
[1764164259730,0.80934314,2923.1,2922.2,10.26620204]
[1764164260026,0.80934314,2923.0,2922.2,10.26620204]
[1764164260231,0.4902,2923.0,2922.2,10.26620204]
[1764164260433,0.4902,2923.0,2922.2,13.68828129]
[1764164260609,0.4902,2923.2,2922.3,0.405504]
[1764164260813,0.31934555,2923.1,2922.3,0.405504]
[1764164261021,0.31934555,2923.0,2922.3,0.405504]
[1764164261222,0.31966961,2922.9,2922.4,10.26553515]
[1764164261533,0.4902,2923.2,2922.4,10.26553515]
[1764164261738,0.31966961,2923.1,2922.4,10.26553515]
[1764164261908,0.31966961,2923.0,2922.4,10.26553515]
[1764164262114,0.31966961,2922.9,2922.4,10.26553515]
[1764164262430,0.4902,2923.2,2922.4,10.26553515]
[1764164262735,0.11624007,2923.9,2922.4,10.26553515]
[1764164262736,0.31899902,2923.1,2923.0,0.4842]
[1764164262935,0.4902,2923.8,2922.6,0.405504]
[1764164263234,0.4902,2923.7,2922.6,0.405504]
[1764164263407,0.4902,2923.7,2922.7,10.26448146]
[1764164264017,0.4902,2923.7,2922.7,3.42149382]
[1764164264018,0.6594,2922.8,2922.7,3.42149382]
[1764164264217,0.4902,2923.7,2922.7,6.84298764]
[1764164264453,0.6879,2922.8,2922.7,3.42149382]
[1764164264931,1.1583,2922.8,2922.2,6.8441585]
[1764164265132,0.2922,2922.7,2922.2,10.26623775]
[1764164265631,0.193,2922.8,2922.2,10.26623775]
[1764164265931,0.4704,2923.1,2922.3,0.72559411]
[1764164266133,0.193,2923.0,2922.3,0.72559411]
[1764164266726,0.4704,2922.9,2922.2,10.26623775]
[1764164267630,0.4704,2922.9,2922.2,6.8441585]
[1764164269013,0.4949,2922.3,2922.2,3.42207925]
[1764164269214,0.4704,2922.9,2922.2,6.8441585]
[1764164269635,0.4949,2922.3,2922.1,0.001]
[1764164269827,0.2922,2922.2,2922.1,0.001]
[1764164270331,0.4704,2922.7,2922.1,0.001]
[1764164270901,0.6634,2923.0,2922.1,0.001]
[1764164271311,0.193,2923.0,2922.1,0.001]
[1764164271517,0.4704,2922.9,2922.1,0.001]
[1764164272330,0.002,2923.4,2922.9,0.405504]
[1764164272530,0.002,2923.4,2923.3,0.5685]
[1764164272856,0.002,2923.4,2923.3,1.439604]
[1764164273012,0.11624007,2923.9,2923.4,0.405504]
[1764164273212,0.11624007,2923.9,2923.8,9.82079612]
[1764164273417,0.11624007,2923.9,2923.8,1.59039811]
[1764164273638,0.11624007,2923.9,2923.8,2.05599811]
[1764164273840,0.11624007,2923.9,2923.8,5.47620469]
[1764164274040,0.11624007,2923.9,2923.8,5.57595469]
[1764164274440,0.11624007,2923.9,2923.8,5.47620469]
[1764164274934,0.11624007,2923.9,2923.8,5.57595469]
[1764164275721,0.183,2925.4,2923.8,5.57595469]
[1764164275722,0.193,2926.8,2924.4,0.405504]
[1764164275922,0.193,2926.8,2924.3,31.35079112]
[1764164275923,0.4704,2926.6,2925.0,0.72559411]
[1764164276167,0.31874203,2926.5,2924.6,0.405504]
[1764164276364,0.31881199,2926.4,2924.6,0.405504]
[1764164276572,0.31881199,2926.3,2924.6,0.871104]
[1764164276867,0.193,2926.8,2924.6,0.871104]
[1764164276868,0.31881199,2926.2,2924.6,0.871104]
[1764164277020,0.4704,2926.7,2924.8,0.405504]
[1764164277226,0.78873912,2926.6,2924.9,0.72559411]
[1764164277526,0.31833912,2926.5,2924.9,1.19119411]
[1764164277723,0.31833912,2926.5,2925.0,10.25641023]
[1764164277724,0.78873912,2926.5,2925.0,10.25641023]
[1764164277925,0.31833912,2926.4,2925.0,10.25641023]
[1764164278246,0.78873912,2926.4,2925.0,6.83760682]
[1764164278424,0.31833912,2926.3,2925.0,6.83760682]
[1764164278620,0.78873912,2926.3,2925.0,6.83760682]
[1764164278821,0.4704,2926.2,2925.1,0.1524]
[1764164279951,0.4704,2926.2,2925.2,6.83713934]
[1764164280255,0.4704,2926.2,2924.7,0.72559411]
[1764164280256,0.6879,2925.3,2924.7,0.72559411]
[1764164280559,0.4704,2926.2,2924.7,0.72559411]
[1764164280762,0.193,2925.4,2924.7,0.72559411]
[1764164281139,0.193,2925.6,2924.8,0.405504]
[1764164282066,0.193,2925.9,2924.8,13.67614876]
[1764164282261,0.193,2925.9,2924.8,14.14174876]
[1764164282462,0.193,2925.9,2924.9,0.4656]
[1764164282847,0.6634,2925.9,2924.9,0.4656]
[1764164283176,0.6634,2925.9,2924.9,1.19119411]
[1764164283757,0.193,2925.9,2924.9,1.19119411]
[1764164283966,0.4704,2925.8,2924.9,1.19119411]
[1764164284165,0.4704,2925.8,2925.0,10.25641023]
[1764164284471,0.193,2925.9,2925.0,10.25641023]
[1764164284667,0.193,2925.9,2925.1,0.1524]
[1764164285067,0.6634,2925.9,2925.1,0.1524]
[1764164285285,0.6634,2925.9,2925.0,6.83760682]
[1764164285487,0.489,2925.8,2925.0,6.83760682]
[1764164285689,0.489,2925.8,2925.1,0.1524]
[1764164286070,0.002,2925.9,2925.7,0.475]
[1764164286274,0.002,2925.9,2925.8,3.89286861]
[1764164286475,0.002,2925.9,2925.8,3.41786861]
[1764164286781,0.002,2925.9,2925.8,4.76787261]
[1764164287030,0.1905,2927.2,2926.2,0.405504]
[1764164287165,0.6795,2927.5,2926.7,0.475]
[1764164287364,0.00578606,2927.1,2926.7,0.9445]
[1764164287691,0.00578606,2927.1,2927.0,0.475]
[1764164288361,0.00578606,2927.1,2926.8,6.83340166]
[1764164288567,0.6628,2926.9,2926.8,3.41670083]
[1764164288864,0.00578606,2927.1,2926.8,6.83340166]
[1764164289097,0.00578606,2927.1,2926.9,0.475]
[1764164289463,0.489,2927.9,2927.0,0.475]
[1764164290005,0.489,2927.9,2927.1,0.1308]
[1764164290214,0.489,2927.9,2927.3,3.41611724]
[1764164291320,1.0013,2927.4,2927.0,6.83293474]
[1764164291524,0.2714,2927.3,2926.7,3.41678629]
[1764164291709,0.2714,2927.3,2926.7,10.25042143]
[1764164292031,0.2714,2927.3,2926.7,6.83360386]
[1764164292501,0.6608,2926.8,2926.4,3.41716785]
[1764164292920,0.2734,2926.5,2926.1,3.41747522]
[1764164293125,0.7624,2926.5,2926.1,6.83499341]
[1764164293331,0.2734,2926.5,2926.1,6.83499341]
[1764164293907,0.7624,2926.5,2926.1,6.83499341]
[1764164294219,0.7624,2926.5,2926.1,3.41747522]
[1764164294406,0.4683,2926.2,2925.5,3.41814708]
[1764164294595,0.2777,2926.1,2925.5,3.41814708]
[1764164295030,0.2777,2926.1,2925.4,10.25500785]
[1764164295232,0.4867,2926.7,2925.6,1.20319411]
[1764164295531,0.4867,2926.7,2925.6,0.72559411]
[1764164296311,0.4867,2926.7,2925.7,10.25395629]
[1764164296542,0.4867,2926.7,2925.8,0.405504]
[1764164297802,0.1905,2926.8,2925.9,8.23039801]
[1764164298134,0.04,2927.4,2926.8,0.405504]
[1764164298357,0.04,2927.4,2927.0,0.72559411]
[1764164298645,0.04,2927.4,2927.3,0.4969]
[1764164299257,0.04,2927.4,2927.3,0.9745]
[1764164300434,0.04,2927.4,2927.3,5.04411535]
[1764164300435,1e-08,2927.4,2927.3,5.04411535]
[1764164300826,1e-08,2927.4,2927.3,5.52171535]
[1764164301163,0.1849,2929.8,2927.3,13.75211336]
[1764164301364,0.1849,2930.4,2928.7,8.23039801]
[1764164301512,0.1849,2929.9,2929.2,0.405504]
[1764164301847,0.1849,2929.9,2928.8,0.405504]
[1764164302083,0.4867,2929.8,2928.8,0.405504]
[1764164302229,0.4867,2929.8,2928.6,0.1362]
[1764164302425,0.1849,2929.9,2928.7,10.24345272]
[1764164302749,0.6716,2929.9,2928.8,0.505254]
[1764164302954,0.6716,2929.9,2928.8,1.70844811]
[1764164303257,0.1849,2929.9,2928.8,1.13109811]
[1764164303439,0.4867,2929.8,2928.8,0.405504]
[1764164303953,0.4867,2929.8,2928.7,6.82896848]
[1764164304136,0.4867,2929.8,2928.6,3.41459249]
[1764164304341,0.4867,2929.8,2928.5,3.41471743]
[1764164304846,0.4887,2929.8,2928.5,6.82943486]
[1764164305218,0.4887,2929.8,2928.2,6.8300882]
[1764164305720,0.4887,2929.8,2928.2,10.24515547]
[1764164305963,0.4887,2929.8,2928.4,0.405504]
[1764164306494,0.4887,2929.8,2928.6,0.405504]
[1764164307762,0.4887,2929.8,2928.6,0.883104]
[1764164308311,0.4887,2929.8,2928.6,0.4776]
[1764164308468,0.4887,2929.8,2928.7,6.82896848]
[1764164308663,0.4887,2929.8,2928.7,10.24345272]
[1764164308890,0.4887,2929.8,2928.8,0.4776]
[1764164309403,0.4887,2929.8,2928.8,0.57735]
[1764164310395,0.4887,2929.8,2928.9,10.24275324]
[1764164310799,0.4887,2929.8,2928.9,6.82850216]
[1764164311921,0.4887,2929.8,2928.9,3.41425108]
[1764164312136,0.4879,2929.8,2928.9,6.82850216]
[1764164312470,0.4879,2929.8,2928.9,3.41425108]
[1764164312671,0.4879,2929.8,2928.8,6.8287353]
[1764164313169,0.6548,2928.9,2928.2,6.83013454]
[1764164313395,0.6548,2928.9,2927.6,3.41576718]
[1764164313598,0.6548,2928.9,2927.6,6.83153436]
[1764164313798,0.6548,2928.9,2927.6,3.41576718]
[1764164313995,0.7542,2928.9,2926.8,3.41661671]
[1764164314236,0.1849,2927.7,2926.8,6.83340166]
[1764164314598,0.4867,2927.6,2926.4,6.8343357]
[1764164314803,0.4867,2927.6,2926.2,3.41728602]
[1764164315311,9.44269212,2927.6,2926.1,3.41851169]
[1764164315525,0.31706966,2927.5,2926.1,3.41850618]
[1764164315841,0.4867,2927.5,2926.2,0.1524]
[1764164316203,0.4867,2927.5,2926.3,8.70799801]
[1764164316425,0.4867,2927.5,2926.5,10.25115324]
[1764164316803,0.4867,2927.5,2926.5,6.83410216]
[1764164317334,0.4867,2927.5,2926.4,6.8342977]
[1764164317539,0.1849,2927.7,2926.4,10.72906555]
[1764164317824,0.1849,2928.0,2926.9,0.09975]
[1764164318027,0.1849,2928.0,2927.0,0.4776]
[1764164318395,0.6716,2928.0,2927.2,6.83246788]
[1764164319047,0.6716,2928.0,2927.2,10.24870182]
[1764164319246,0.4867,2928.4,2927.2,10.82605182]
[1764164319445,0.4867,2928.8,2927.5,0.09975]
[1764164320540,0.4867,2928.8,2927.6,6.83153436]
[1764164320744,0.4867,2928.8,2927.6,10.24730154]
[1764164320958,0.4867,2928.8,2927.6,6.83153436]
[1764164321443,0.4867,2928.8,2927.6,10.24730154]
[1764164322842,0.1849,2928.9,2927.4,3.41600054]
[1764164323008,0.6716,2928.9,2927.4,3.89360054]
[1764164323214,0.6716,2928.9,2927.5,0.4776]
[1764164323429,0.4867,2928.8,2927.5,0.4776]
[1764164323743,0.4867,2928.8,2927.3,10.65385572]
[1764164323941,0.4867,2928.8,2927.3,6.83223448]
[1764164324660,0.4168406,2928.7,2927.3,6.83223448]
[1764164324849,0.3174406,2928.7,2927.3,3.41611724]
[1764164325138,0.4585,2928.6,2927.2,6.83246788]
[1764164325532,1.18409411,2928.6,2927.2,6.83246788]
[1764164325831,0.31762312,2928.5,2927.2,6.83246788]
[1764164326141,0.4585,2928.4,2927.2,6.83246788]
[1764164326439,0.1849,2928.9,2927.3,0.452]
[1764164326638,0.1849,2928.9,2927.3,9.81349612]
[1764164326838,0.4585,2928.8,2927.8,10.24660152]
[1764164327747,0.002,2929.8,2928.7,8.36739801]
[1764164327943,0.4605,2929.8,2928.7,0.137]
[1764164328344,0.4605,2929.8,2928.5,0.137]
[1764164328728,0.4605,2929.8,2928.5,0.589]
[1764164328924,0.4605,2929.8,2928.7,6.82896848]
[1764164329332,0.4605,2929.8,2928.7,3.41448424]
[1764164329640,0.4605,2929.8,2928.7,6.82896848]
[1764164330258,0.4605,2929.8,2928.7,3.41448424]
[1764164330758,0.6703,2928.8,2928.2,0.137]
[1764164331059,0.6703,2928.8,2927.9,3.41531867]
[1764164331227,0.6703,2928.8,2927.8,6.83106768]
[1764164331429,0.4585,2928.7,2927.8,10.24660152]
[1764164331629,0.72559411,2929.5,2927.8,10.24660152]
[1764164331630,0.4605,2929.8,2928.7,0.6335]
[1764164332135,0.4605,2929.8,2928.7,1.0855]
[1764164333056,0.4605,2929.8,2928.8,6.8287353]
[1764164333263,0.4605,2929.8,2928.8,10.24310295]
[1764164333762,0.002,2929.8,2928.9,0.857504]
[1764164334064,0.002,2929.8,2928.9,0.405504]
[1764164334358,0.002,2929.8,2929.1,0.09975]
[1764164334860,0.002,2929.8,2929.0,0.452]
[1764164335159,0.002,2929.8,2929.1,10.24205385]
[1764164336173,0.002,2929.8,2929.1,6.8280359]
[1764164336753,0.0012,2929.8,2929.1,6.8280359]
[1764164337277,0.0012,2929.8,2928.8,10.64860695]
[1764164337480,0.4597,2929.8,2928.8,10.64860695]
[1764164337674,0.4597,2929.8,2928.8,10.24310295]
[1764164338374,0.4597,2929.8,2928.8,10.69510295]
[1764164338588,0.0012,2929.8,2928.9,0.452]
[1764164338976,0.4597,2929.8,2928.8,10.24310295]
[1764164342164,0.4597,2929.8,2928.8,6.8287353]
[1764164342381,0.6703,2928.9,2928.8,3.41436765]
[1764164342554,0.4597,2929.8,2928.8,6.8287353]
[1764164342746,0.4585,2929.7,2928.8,6.8287353]
[1764164343151,0.4585,2929.7,2928.8,10.24310295]
[1764164343775,0.6703,2928.9,2928.8,3.41436765]
[1764164344309,0.6703,2928.9,2928.6,3.41556777]
[1764164344310,1.1288,2928.9,2928.6,0.001]
[1764164344514,0.3015,2928.7,2928.6,0.001]
[1764164344685,0.1959,2928.9,2928.6,3.41560083]
[1764164344887,0.4585,2929.2,2928.6,6.83020166]
[1764164345412,0.4585,2929.2,2928.6,3.41560083]
[1764164345587,0.6488,2928.7,2928.6,0.001]
[1764164345783,0.4693,2929.7,2928.6,10.24480249]
[1764164346010,0.4693,2929.7,2928.6,11.23490249]
[1764164346612,0.4693,2929.7,2928.6,10.74170249]
[1764164347879,0.4693,2929.7,2928.6,6.83020166]
[1764164348587,0.5687,2929.7,2928.6,6.83020166]
[1764164348784,0.1972,2928.7,2928.6,3.41560083]
[1764164348985,0.4693,2929.7,2928.6,6.83020166]
[1764164349186,0.0012,2929.8,2928.7,0.4932]
[1764164349394,0.0012,2929.8,2929.0,0.505254]
[1764164349600,0.0012,2929.8,2929.7,0.137]
[1764164349804,0.0012,2929.8,2929.5,0.137]
[1764164349988,0.0012,2929.8,2929.2,0.137]
[1764164350312,0.0012,2929.8,2929.1,6.8280359]
[1764164350811,0.0012,2929.8,2929.1,10.24205385]
[1764164351334,0.4705,2929.8,2929.1,6.8280359]
[1764164351494,0.4516,2929.2,2929.1,3.41401795]
[1764164351702,0.4705,2929.8,2928.7,10.24345272]
[1764164352229,0.4705,2929.8,2928.7,6.82896848]
[1764164352924,0.6488,2928.8,2928.6,3.41559169]
[1764164353515,1.19609411,2929.8,2928.6,3.41559169]
[1764164353516,0.4693,2929.3,2928.6,3.41559169]
[1764164353810,0.4693,2929.3,2928.6,0.001]
[1764164356793,0.6448,2928.7,2928.6,0.001]
[1764164357232,1.1102,2928.7,2928.6,0.001]
[1764164358950,4.32896508,2929.8,2928.6,0.001]
[1764164358951,0.1875,2928.9,2928.6,0.001]
[1764164359151,0.4573,2928.7,2928.6,0.001]
[1764164360849,0.9227,2928.7,2928.6,0.001]
[1764164361649,0.9219,2928.7,2928.6,0.001]
[1764164367336,0.4565,2928.7,2928.6,0.001]
[1764164368458,0.9219,2928.7,2928.6,0.001]
[1764164369268,0.1875,2928.9,2928.6,0.001]
[1764164369439,0.4654,2929.2,2928.6,0.001]
[1764164371059,0.0012,2929.8,2928.6,0.001]
[1764164371060,0.72679411,2929.8,2928.6,0.001]
[1764164371266,0.4654,2929.4,2928.6,0.001]
[1764164372374,0.4654,2929.4,2928.6,6.83020166]
[1764164373278,0.0012,2929.8,2928.6,6.83020166]
[1764164373486,0.4654,2929.3,2928.6,6.83020166]
[1764164374207,0.4654,2929.3,2928.6,10.24480249]
[1764164374414,0.0012,2929.8,2928.6,10.24480249]
[1764164374704,0.4654,2929.3,2928.6,3.41560083]
[1764164375158,0.4654,2929.3,2928.6,6.83020166]
[1764164375359,0.4654,2929.3,2928.6,3.41560083]
[1764164375584,0.4573,2928.7,2928.6,3.41560083]
[1764164375903,0.6448,2928.7,2928.6,3.41560083]
[1764164376102,0.1875,2928.9,2928.6,6.83020166]
[1764164376488,0.6529,2928.9,2928.6,0.001]
[1764164377000,0.4573,2928.7,2928.6,0.001]
[1764164377506,0.9227,2928.7,2928.6,0.001]
[1764164377666,0.4573,2928.7,2928.6,0.001]
[1764164378762,0.9247,2928.7,2928.6,0.001]
[1764164378980,0.002,2928.7,2928.6,0.001]
[1764164379892,0.9247,2928.7,2928.6,0.001]
[1764164380106,3.41446479,2929.8,2928.6,0.001]
[1764164380107,0.0012,2929.8,2928.7,0.405504]
[1764164380278,0.0012,2929.8,2928.8,0.9305]
[1764164380458,0.0012,2929.8,2928.9,10.24275324]
[1764164380660,0.0012,2929.8,2928.9,14.11720432]
[1764164380887,0.4666,2929.8,2928.9,14.11720432]
[1764164381094,0.0012,2929.8,2929.0,0.4602]
[1764164381293,0.0012,2929.8,2929.7,0.6073]
[1764164382097,0.0012,2929.8,2929.1,0.4602]
[1764164382305,0.9239,2929.8,2929.2,0.137]
[1764164382466,0.9239,2929.8,2929.1,6.8280359]
[1764164382666,0.9239,2929.8,2929.1,10.24205385]
[1764164383673,0.9239,2929.8,2929.1,6.8280359]
[1764164383991,0.4654,2929.7,2929.1,6.8280359]
[1764164384193,0.3274,2929.2,2929.1,3.41401795]
[1764164384505,0.4774,2929.5,2928.9,3.41425108]
[1764164384704,0.4765,2929.2,2928.9,6.82850216]
[1764164385871,0.4765,2929.2,2928.6,0.001]
[1764164386270,0.4757,2929.2,2928.6,0.001]
[1764164388083,0.4774,2929.6,2928.6,0.4747]
[1764164388888,0.0012,2929.8,2928.6,0.4747]
[1764164389081,0.4786,2929.8,2928.6,0.4747]
[1764164389810,0.4786,2929.8,2928.7,10.24345272]
[1764164391098,0.4786,2929.8,2928.8,0.4737]
[1764164391893,0.4786,2929.8,2928.9,10.24275324]
[1764164392412,0.4786,2929.8,2928.9,10.19054421]
[1764164392914,0.44863065,2929.8,2928.9,10.19054421]
[1764164393782,0.44863065,2929.8,2928.9,14.07849529]
[1764164393985,0.11290286,2930.0,2929.0,8.66795764]
[1764164394213,0.11290286,2930.0,2929.0,0.4737]
[1764164394214,0.1929,2929.9,2929.0,0.4737]
[1764164394412,0.1929,2929.9,2928.9,10.19054421]
[1764164394992,0.4774,2929.8,2928.9,10.19054421]
[1764164395413,0.4774,2929.8,2928.9,13.60479529]
[1764164395591,0.4774,2929.8,2928.9,14.07849529]
[1764164395797,0.1929,2929.9,2929.0,0.4737]
[1764164395998,0.1929,2929.9,2929.1,10.24205385]
[1764164396201,0.6703,2929.9,2929.1,10.40865385]
[1764164397347,0.11290286,2930.0,2929.2,0.4737]
[1764164397499,0.11290286,2930.0,2929.9,0.4996]
[1764164397700,0.002,2929.9,2929.1,10.40865385]
[1764164397900,0.1949,2929.9,2929.1,10.40865385]
[1764164398114,0.4774,2929.8,2929.1,10.40865385]
[1764164398301,0.1949,2929.9,2929.1,6.9946359]
[1764164398631,0.6723,2929.9,2929.1,6.8280359]
[1764164398997,0.6723,2929.9,2929.1,3.41401795]
[1764164398998,0.4765,2929.2,2929.1,3.41401795]
[1764164399925,0.4774,2929.5,2929.0,3.41412671]
[1764164401156,0.4774,2929.8,2929.0,3.41412671]
[1764164402360,0.4774,2929.8,2928.9,6.82950216]
[1764164402855,0.4774,2929.8,2928.9,10.24375324]
[1764164404053,0.4774,2929.8,2928.9,10.71745324]
[1764164404256,0.1949,2929.9,2928.9,10.71745324]
[1764164404257,0.002,2929.9,2929.7,0.4996]
[1764164404753,0.002,2929.9,2929.8,0.4996]
[1764164405456,0.002,2929.9,2929.8,0.9733]
[1764164405670,0.002,2929.9,2929.8,9.26730764]
[1764164405850,0.002,2929.9,2929.8,9.67281164]
[1764164406266,0.4674,2931.7,2930.0,0.09975]
[1764164406439,2.01579,2931.8,2929.9,1.64889411]
[1764164406640,2.01579,2931.8,2930.0,0.4569]
[1764164406822,0.4674,2931.7,2930.0,0.4569]
[1764164407027,0.4674,2931.7,2930.0,0.55665]
[1764164407226,0.4674,2931.8,2930.5,8.19425764]
[1764164407680,0.4674,2931.8,2930.6,0.4569]
[1764164408198,0.4674,2931.8,2930.7,10.23646227]
[1764164408541,0.4674,2931.8,2930.8,0.4569]
[1764164408747,0.1929,2932.0,2930.8,0.4569]
[1764164409188,0.4674,2931.9,2930.8,0.4569]
[1764164409345,0.1264507,2932.2,2930.9,8.59976164]
[1764164409546,0.1264507,2932.2,2930.9,8.69951164]
[1764164409853,0.5938507,2932.2,2930.8,0.4569]
[1764164410252,0.1264507,2932.2,2931.2,8.19425764]
[1764164410462,0.1264507,2932.2,2931.4,0.405504]
[1764164410651,0.1264507,2932.2,2931.4,1.13109811]
[1764164410973,0.1256507,2932.2,2932.1,0.6155]
[1764164411349,0.1256507,2932.2,2932.1,1.0724]
[1764164412274,0.1256507,2932.2,2932.1,4.88842887]
[1764164412796,1e-08,2932.2,2932.1,5.61402298]
[1764164412982,1e-08,2932.2,2932.1,4.48292487]
[1764164413663,1e-08,2932.2,2932.1,4.98817887]
[1764164414063,1e-08,2932.2,2932.1,5.71377298]
[1764164414382,1e-08,2932.2,2932.1,5.61402298]
[1764164414560,1e-08,2932.2,2932.1,5.71377298]
[1764164415464,1e-08,2932.2,2932.1,5.61402298]
[1764164415990,1e-08,2932.2,2932.1,4.75161898]
[1764164416157,0.00200001,2932.2,2932.1,4.75161898]
[1764164416364,0.00200001,2932.2,2932.1,4.02602487]
[1764164416908,0.00200001,2932.2,2932.1,3.41052487]
[1764164418369,0.00200001,2932.2,2931.6,10.23327035]
[1764164419026,0.00200001,2932.2,2931.6,6.82216379]
[1764164419027,0.46980001,2932.2,2931.6,6.82216379]
[1764164419951,0.46980001,2932.2,2931.6,3.41105723]
[1764164420332,0.46980001,2932.2,2931.2,10.23468152]
[1764164420646,0.46980001,2932.2,2931.3,0.4664]
[1764164421630,0.46980001,2932.2,2931.3,1.29174411]
[1764164421631,0.00200001,2932.2,2931.3,1.29174411]
[1764164421833,0.00200001,2932.2,2931.4,0.4664]
[1764164422205,0.00200001,2932.2,2931.5,0.405504]
[1764164422406,0.00200001,2932.2,2932.1,0.6091]
[1764164423118,0.00200001,2932.2,2931.7,8.19425764]
[1764164423315,0.00200001,2932.2,2931.7,8.29400764]
[1764164423526,0.00200001,2932.2,2932.1,0.1491]
[1764164424102,0.00200001,2932.2,2932.1,1.014604]
[1764164424331,0.00200001,2932.2,2932.1,4.01962487]
[1764164424829,0.00200001,2932.2,2932.1,3.41052487]
[1764164425918,0.00200001,2932.2,2932.1,3.55962487]
[1764164426368,0.00200001,2932.2,2932.1,4.01962487]
[1764164426747,0.00200001,2932.2,2932.1,4.48602487]
[1764164427657,0.00200001,2932.2,2932.1,3.41052487]
[1764164427830,0.49790001,2932.2,2932.1,3.41052487]
[1764164428032,0.96570001,2932.2,2932.1,3.41052487]
[1764164428354,0.00200001,2932.2,2932.1,4.01962487]
[1764164429628,0.00200001,2932.2,2932.1,3.41052487]
[1764164430260,0.96570001,2932.2,2932.1,3.41052487]
[1764164430764,0.96570001,2932.2,2931.3,3.41140721]
[1764164431054,0.00200001,2932.2,2931.4,0.871904]
[1764164431423,0.00200001,2932.2,2931.6,0.405504]
[1764164431826,0.00200001,2932.2,2931.6,0.971654]
[1764164432222,0.00200001,2932.2,2931.7,0.4664]
[1764164432540,0.00200001,2932.2,2932.1,0.6091]
[1764164432842,0.00200001,2932.2,2932.1,4.01962487]
[1764164434037,0.00200001,2932.2,2932.1,4.48602487]
[1764164434233,0.00200001,2932.2,2932.1,3.41052487]
[1764164434854,0.00200001,2932.2,2932.0,0.001]
[1764164435657,0.00120001,2932.2,2932.1,0.6091]
[1764164436369,0.1998,2933.2,2932.4,0.405504]
[1764164436569,0.1998,2933.4,2932.7,0.46]
[1764164436757,0.1998,2933.4,2932.8,10.22913255]
[1764164436964,0.1978,2934.1,2932.8,18.88979019]
[1764164437271,0.4678,2933.9,2933.0,0.09975]
[1764164437473,0.4678,2933.9,2932.9,0.4664]
[1764164437678,0.1978,2934.1,2933.0,0.405504]
[1764164437974,0.1978,2934.1,2933.1,0.09975]
[1764164438148,1.65701452,2935.2,2934.0,0.46]